Cogmind - Beta 10.2 @@@ ROGUE MODE // 2020.11.20 @ 21:11:00 // Halloween2020/ForbiddenLore Player: blelm Result: Self-destructed Performance ------------- Evolutions (3) 1500 Regions Visited (6) 1200 Robots Destroyed (176) 880 Value Destroyed (4906) 4906 Prototype IDs (5) 100 Alien Tech Used (0) 0 Bonus (671) 671 TOTAL SCORE: 9257 Bonus ------- High Alert Combat Kills 671 Cogmind --------- Core Integrity 630/700 Matter 260/300 Energy 300/300 System Corruption 2% Temperature Cool (0) Movement Rolling (130) Ox3 Location -7/Factory Parts ------- > --- POWER (1) -------- Enhanced Nuclear Core > --- PROPULSION (3) --- Advanced Treads Armored Huge Wheel > --- UTILITY (7) ------ Large Storage Unit High-capacity Storage Unit High-capacity Storage Unit Advanced Visual Processing Unit Hacking Suite Hacking Suite Hacking Suite > --- WEAPON (2) ------- Heavy Assault Rifle Heavy Assault Rifle > --- INVENTORY (26) --- Enhanced Nuclear Core Light Treads Advanced Treads Advanced Treads Airjet Combat Airjet Cooling System Large Storage Unit Large Storage Unit High-capacity Battery (400) Large Matter Pod (150) Advanced Signal Interpreter Medium Armor Plating Hardened Light Armor Plating Medium Reactive Plating Medium Reactive Plating Medium Reactive Plating Medium Reactive Plating Hacking Suite Thief Drone Bay (3/3) Improved EM Shotgun Improved EM Shotgun Missile Launcher Missile Launcher Missile Launcher Axe Peak State ------------ > --- POWER ------------ Improved Deuterium Engine > --- PROPULSION ------- Advanced Treads Armored Huge Wheel > --- UTILITY ---------- Large Storage Unit High-capacity Storage Unit High-capacity Storage Unit Advanced Visual Processing Unit Medium Reactive Plating Hacking Suite Hacking Suite > --- WEAPON ----------- Improved EM Shotgun Axe > --- INVENTORY -------- Deuterium Engine Light Treads Advanced Treads Advanced Treads Airjet Combat Airjet Cooling System Large Storage Unit Large Storage Unit High-capacity Battery Large Matter Pod Advanced Signal Interpreter Hardened Light Armor Plating Medium Reactive Plating Medium Reactive Plating Medium Reactive Plating Hacking Suite Hacking Suite Thief Drone Bay Improved EM Shotgun Heavy Assault Rifle Heavy Assault Rifle Missile Launcher Missile Launcher [Rating: 43] Favorites ----------- Power Improved Ion Engine Engine Improved Ion Engine Power Core Light Nuclear Core Propulsion Armored Wheel Treads Light Treads Leg Aluminum Leg Wheel Armored Wheel Utility High-capacity Storage Unit Device Maneuvering Thrusters Storage High-capacity Storage Unit Processor Advanced Visual Processing Unit Hackware Hacking Suite Protection Light Armor Plating Weapon Heavy Assault Rifle Energy Gun Improved EM Shotgun Energy Cannon Advanced Beam Cannon Ballistic Gun Heavy Assault Rifle Ballistic Cannon Improved Light Cannon Launcher Rocket Launcher Impact Weapon Flail Slashing Weapon Axe Build | -11 -10 -10 -9 -9 -8 -7 ------- Run | Scr Mat Min Mat Min Mat Fac Slots Evolved 6 | . . . 2 . 2 2 Power . | . . . . . . . Propulsion 1 | . . . . . 1 . Utility 5 | . . . 2 . 1 2 Weapon . | . . . . . . . Parts Attached 154 | 3 4 13 47 14 49 24 Power 13 | . . 2 3 2 3 3 Engine 11 | . . 1 3 2 3 2 Core 2 | . . 1 . . . 1 Reactor . | . . . . . . . Propulsion 25 | 2 1 4 5 5 7 1 Treads 14 | 1 . 2 2 3 6 . Leg . | . . . . . . . Wheel 11 | 1 1 2 3 2 1 1 Hover . | . . . . . . . Flight . | . . . . . . . Utility 34 | 1 1 2 12 1 13 4 Device 2 | . . 1 . . 1 . Storage 8 | 1 1 1 4 . 1 . Processor 1 | . . . . . . 1 Hackware 3 | . . . . . . 3 Protection 20 | . . . 8 1 11 . Artifact . | . . . . . . . Weapon 82 | . 2 5 27 6 26 16 Energy Gun 17 | . . . 4 . 7 6 Energy Cannon 1 | . . . 1 . . . Ballistic Gun 32 | . 1 3 14 3 7 4 Ballistic Cannon 2 | . 1 1 . . . . Launcher 19 | . . 1 7 3 6 2 Special Weapon . | . . . . . . . Impact Weapon 1 | . . . 1 . . . Slashing Weapon 10 | . . . . . 6 4 Piercing Weapon . | . . . . . . . Special Melee Weapon . | . . . . . . . Unidentified Prototypes 5 | . . 1 2 . . 2 Parts Lost 25 | . . 5 5 3 11 1 Power 5 | . . 1 1 1 2 . Propulsion 5 | . . 1 . 2 2 . Utility 7 | . . . 3 . 4 . Weapon 8 | . . 3 1 . 3 1 Highest Loss Streak 4 | . . 4 1 2 2 1 Average Slot Usage (%) 98 | . 100 95 97 99 99 96 Engine 8 | . 14 2 9 11 8 6 Core 1 | . . 7 1 . . . Treads 13 | . 14 14 11 10 19 15 Wheel 9 | . 14 13 11 11 7 3 Storage 29 | . 28 28 32 33 27 23 Hackware 1 | . . . . . . 12 Protection 10 | . . . 10 11 17 9 Energy Gun 5 | . 2 . 3 . 10 9 Ballistic Gun 12 | . 24 9 16 21 5 4 Ballistic Cannon 1 | . . 13 . . . . Naked Turns . | . . . . . . . Heaviest Build 118 | 16 19 19 98 96 118 118 Greatest Support 64 | 20 16 40 20 24 64 64 Greatest Overweight (x) 8 | . 1 1 8 7 8 4 Average Overweight (x) 4 | . . . 6 6 2 2 Largest Inventory Capacity 26 | 8 8 8 26 26 26 26 Average Capacity 23 | 6 8 7 25 26 26 26 Most Carried 26 | 6 8 8 26 26 26 26 Average Carried 20 | 5 7 7 18 25 25 24 Final Capacity 26 | 8 8 8 26 26 26 26 Final Carried 26 | 4 8 8 26 26 26 26 Class Distribution -------------------- 83% | Hauler-Mutant 14% | Mutant Dominant Class ---------------- Mutant | -10/Materials Mutant | -10/Mines Hauler-Mutant | -9/Materials Hauler-Mutant | -9/Mines Hauler-Mutant | -8/Materials Hauler-Mutant | -7/Factory Resources | -11 -10 -10 -9 -9 -8 -7 ----------- Run | Scr Mat Min Mat Min Mat Fac Matter Collected 3895 | 242 144 365 1481 282 1053 328 Remotely . | . . . . . . . Salvage Created 6208 | 64 211 386 2226 397 2051 873 Parts 362 | 3 13 16 120 29 128 53 Haulers Intercepted 13 | . 1 . 6 . 5 1 Recyclers Shooed 5 | . 1 1 2 . . 1 Parts Field Recycled . | . . . . . . . Retrieved Matter . | . . . . . . . Parts Self-Destructed . | . . . . . . . Prevented . | . . . . . . . Kills | -11 -10 -10 -9 -9 -8 -7 ------- Run | Scr Mat Min Mat Min Mat Fac Combat Hostiles Destroyed 115 | . 4 10 39 9 40 13 Guns 58 | . 4 2 24 5 20 3 Cannons 4 | . . 3 1 . . . AOE 51 | . . 5 14 4 20 8 Classes Destroyed 15 | 1 2 3 6 1 . 2 Worker 15 | . . . 3 1 10 1 Builder 7 | . . . 3 . 2 2 Tunneler 3 | . . 1 . . 1 1 Hauler 13 | . 1 . 6 . 5 1 Recycler 14 | 1 . 5 4 2 . 2 Operator 6 | . . . 3 . 3 . Watcher 8 | . . . 4 . 4 . Swarmer 12 | . . 3 . 2 7 . Grunt 71 | . 4 2 27 4 24 10 Brawler 2 | . . . . 1 1 . Duelist 2 | . . . 2 . . . Sentry 20 | . . . 10 2 8 . Hunter 1 | . . . . . . 1 Programmer 2 | . . . . . . 2 Assembled 5 | . . 5 . . . . Best Kill Streak 7 | 1 3 4 5 5 7 4 Combat Bots Only 6 | . 2 3 5 3 6 4 Max Kills in Single Turn 3 | 1 1 2 3 2 3 2 Gunslinging . | . . . . . . . Exploded 3 | . . 2 3 2 2 2 Melee . | . . . . . . . Uniques/NPCs Destroyed . | . . . . . . . Combat | -11 -10 -10 -9 -9 -8 -7 -------- Run | Scr Mat Min Mat Min Mat Fac Damage Taken 5696 | . 263 717 1569 365 2003 779 Core 726 | . 10 175 225 45 201 70 Absorbed by Shields . | . . . . . . . Core Remaining (%) 55 | 100 . 26 . 32 63 . Volleys Fired 414 | 4 22 40 166 22 120 40 Largest 2 | 2 2 2 2 2 2 2 Hottest 90 | 60 40 59 90 46 90 90 Shots Fired 728 | 8 44 64 283 40 214 75 Gun 625 | 8 44 25 249 36 192 71 Cannon 50 | . . 35 15 . . . Launcher 53 | . . 4 19 4 22 4 Special . | . . . . . . . Kinetic 502 | 4 44 60 213 36 118 27 Thermal 4 | 4 . . . . . . Explosive 53 | . . 4 19 4 22 4 Electromagnetic 169 | . . . 51 . 74 44 Robot Hit Streak 17 | 6 17 6 16 9 17 11 Robot Miss Streak 7 | 2 2 4 6 2 7 7 Penetration Max . | . . . . . . . Secondary Targets 5 | . . . 2 . 3 . Max Gunslinging Chain 1 | . . . 1 . 1 . Shots Hit Robots 518 | 6 37 37 208 27 153 50 Core Hits 321 | 2 12 24 110 17 120 36 Critical Hits 7 | . . . 2 . 5 . Critical Kills 3 | . . . 1 . 2 . Critical Parts Destroyed 4 | . . . 1 . 3 . Melee Attacks 22 | . . . 3 . 8 11 Impact 3 | . . . 3 . . . Slashing 19 | . . . . . 8 11 Piercing . | . . . . . . . Sneak Attacks 5 | . . . . . 3 2 Combat Hostiles . | . . . . . . . Follow-up Attacks . | . . . . . . . Damage Inflicted 14411 | 68 495 885 4647 834 5475 2007 Guns 6835 | 68 495 103 2903 407 1959 900 Cannons 755 | . . 485 270 . . . Explosions 6076 | . . 289 1436 427 3034 890 Melee 634 | . . . . . 417 217 Ramming 111 | . . 8 38 . 65 . Kinetic 5437 | 36 495 588 2495 407 1121 295 Thermal 1113 | 32 . . 177 . 750 154 Explosive 4995 | . . 289 1259 427 2284 736 Electromagnetic 2121 | . . . 678 . 838 605 Impact . | . . . . . . . Slashing 634 | . . . . . 417 217 Piercing . | . . . . . . . Highest Corruption 2 | . . . 2 2 1 2 Average Corruption 1 | . . . 2 2 1 1 Corruption Purged . | . . . . . . . Effects 40 | . . . 8 11 13 8 Message Errors 17 | . . . 4 7 2 4 Heat Flow Errors 5 | . . . 2 1 . 2 Energy Discharges 6 | . . . . 1 4 1 Data Loss (minor) 5 | . . . 1 . 4 . Targeting Errors 6 | . . . 1 2 2 1 Weapon Failures 1 | . . . . . 1 . Overload Shots . | . . . . . . . Overflow Damage 451 | . . 10 35 4 329 73 Projectiles 4 | . . 4 . . . . Explosions 100 | . . 6 35 4 44 11 Melee 347 | . . . . . 285 62 Knockbacks 9 | . . 8 1 . . . Impact . | . . . . . . . Kinetic 8 | . . 7 1 . . . Secondary 1 | . . 1 . . . . Self-Inflicted Damage 486 | . . 67 91 6 256 66 Shots 17 | . . 2 3 1 9 2 Rammed 19 | . . 4 6 . 9 . Targets Rammed 19 | . . 4 6 . 9 . Kicked . | . . . . . . . Crushed . | . . . . . . . Highest Temperature 273 | 20 10 52 221 221 273 245 Average Temperature 40 | 17 3 9 34 55 42 58 Received Heat Transfer 1965 | . 129 24 612 102 810 288 Siege Activations . | . . . . . . . Robots Corrupted 2 | . . . . . . 2 Combat Hostiles 2 | . . . . . . 2 Parts Fried 11 | . . . 4 . 3 4 Impact Corruptions 1 | . . . . . 1 . Robots Melted . | . . . . . . . Combat Hostiles . | . . . . . . . Parts Melted . | . . . . . . . Heat Transferred 925 | 75 . . 200 . 550 100 Parts Sabotaged . | . . . . . . . Parts Stolen . | . . . . . . . Parts Stripped . | . . . . . . . Power Chain Reactions 12 | . . . 3 . 6 3 Missiles Intercepted . | . . . . . . . Alert | -11 -10 -10 -9 -9 -8 -7 ------- Run | Scr Mat Min Mat Min Mat Fac Peak Influence 932 | 5 131 160 598 357 932 578 Initial 401 | . 3 51 7 232 47 401 Average 350 | 3 45 73 303 209 642 429 Maximum Alert Level 3 | . . . 2 1 3 2 Low Security (%) 36 | 100 100 100 37 44 13 . Level 1 22 | . . . 26 55 10 21 Level 2 28 | . . . 36 . 16 78 Level 3 12 | . . . . . 59 . Level 4 . | . . . . . . . Level 5 . | . . . . . . . High Security . | . . . . . . . Max Security . | . . . . . . . Squads Dispatched 19 | . 1 . 6 . 7 5 Investigation 5 | . 1 . 2 . 1 1 Extermination 2 | . . . . . . 2 Reinforcement 9 | . . . 4 . 4 1 Assault 2 | . . . . . 1 1 Garrison 1 | . . . . . 1 . Intercept . | . . . . . . . Construction Impeded 2 | . . . 1 . 1 . Haulers Reinforced . | . . . . . . . Stealth | -11 -10 -10 -9 -9 -8 -7 --------- Run | Scr Mat Min Mat Min Mat Fac Distress Signals 12 | . . . 4 . 6 2 Communications Jammed . | . . . . . . . Distress Signals . | . . . . . . . Times Spotted 216 | . 5 31 70 11 74 25 Peak Tracking Total 21 | . 2 21 6 4 7 4 Tactical Retreats 26 | . 1 7 10 1 5 2 Traps | -11 -10 -10 -9 -9 -8 -7 ------- Run | Scr Mat Min Mat Min Mat Fac Traps Triggered 6 | . 2 . 2 . 1 1 Indirectly . | . . . . . . . Trap Hack Attempts . | . . . . . . . Triggered . | . . . . . . . Disarmed . | . . . . . . . Reprogrammed . | . . . . . . . Reused . | . . . . . . . Traps Extracted . | . . . . . . . Installed . | . . . . . . . Triggered . | . . . . . . . Machines | -11 -10 -10 -9 -9 -8 -7 ---------- Run | Scr Mat Min Mat Min Mat Fac Machines Disabled 15 | . . 2 5 . 7 1 Max in Single Turn 3 | . . 1 1 . 3 1 Garrison Access 1 | . . . . . 1 . Machines Sabotaged . | . . . . . . . Garrisons Compromised . | . . . . . . . Overloaded Fab Kills . | . . . . . . . Fab Network Shutdowns . | . . . . . . . Hacking | -11 -10 -10 -9 -9 -8 -7 --------- Run | Scr Mat Min Mat Min Mat Fac Machines Accessed 23 | . 1 2 12 1 6 1 Terminals 17 | . 1 1 9 . 5 1 Fabricators . | . . . . . . . Repair Stations 2 | . . . 2 . . . Recycling Units . | . . . . . . . Scanalyzers 1 | . . . 1 . . . Garrison Access 1 | . . . . . 1 . Total Hacks 58 | . 3 4 32 1 16 2 Successful 29 | . 1 2 15 1 9 1 Failed 27 | . 1 1 17 . 7 1 Catastrophic 5 | . . . 2 . 3 . Database Lockouts 2 | . 1 1 . . . . Manual 39 | . 4 4 18 . 12 1 Terminals 49 | . 3 3 26 . 15 2 Fabricators . | . . . . . . . Repair Stations 4 | . . . 4 . . . Recycling Units . | . . . . . . . Scanalyzers 2 | . . . 2 . . . Garrison Access 1 | . . . . . 1 . Terminal Hacks 18 | . 1 2 7 1 6 1 Part Schematic 2 | . . . . . 2 . Robot Analysis 3 | . 1 1 1 . . . Open Door 2 | . . 1 . 1 . . Branch Access Points 3 | . . . 1 . 1 1 Repair Station Index 1 | . . . 1 . . . Unreport Threat 2 | . . . 1 . 1 . Locate Traps 2 | . . . 1 . 1 . Hauler Manifests 1 | . . . . . 1 . Zone Layout 2 | . . . 2 . . . Fabricator Hacks . | . . . . . . . Repair Station Hacks 3 | . . . 3 . . . Scan Component 2 | . . . 2 . . . Repair 1 | . . . 1 . . . Recycling Unit Hacks . | . . . . . . . Scanalyzer 2 | . . . 2 . . . Insert Component 1 | . . . 1 . . . Analyze 1 | . . . 1 . . . Garrison Access Hacks 1 | . . . . . 1 . Seal Access 1 | . . . . . 1 . Unauthorized Hacks 5 | . . . 3 . 2 . Terminals 5 | . . . 3 . 2 . Botnet 3 | . . . 2 . 1 . Operators 2 | . . . 1 . 1 . Fabricators . | . . . . . . . Repair Stations . | . . . . . . . Recycling Units . | . . . . . . . Scanalyzers . | . . . . . . . Garrison Access . | . . . . . . . Data Cores Recovered . | . . . . . . . Used . | . . . . . . . Hacking Detections 20 | . 1 1 12 . 5 1 Full Trace Events 6 | . . . 5 . 1 . Feedback Events . | . . . . . . . Feedback Blocked . | . . . . . . . Robot Schematics Acquired . | . . . . . . . Robots Built . | . . . . . . . Matter . | . . . . . . . Time . | . . . . . . . Total Robot Build Rating . | . . . . . . . Part Schematics Acquired 3 | . . . 1 . 2 . Parts Built . | . . . . . . . Matter . | . . . . . . . Time . | . . . . . . . Total Part Build Rating . | . . . . . . . Parts Repaired 1 | . . . 1 . . . Time 70 | . . . 70 . . . Parts Recycled . | . . . . . . . Recycled Matter . | . . . . . . . Retrieved Matter . | . . . . . . . Retrieved Components . | . . . . . . . Parts Scanalyzed 1 | . . . 1 . . . Part Schematics Acquired 1 | . . . 1 . . . Parts Damaged 1 | . . . 1 . . . Bothacking | -11 -10 -10 -9 -9 -8 -7 ------------ Run | Scr Mat Min Mat Min Mat Fac Used RIF Installer . | . . . . . . . Robots Hacked . | . . . . . . . Non-combat . | . . . . . . . Combat . | . . . . . . . Robot Hacks Applied . | . . . . . . . Relay Couplers Released . | . . . . . . . Robots Rewired . | . . . . . . . Allies Hacked . | . . . . . . . Hacks Repelled . | . . . . . . . Allies | -11 -10 -10 -9 -9 -8 -7 -------- Run | Scr Mat Min Mat Min Mat Fac Total Allies . | . . . . . . . Largest Group . | . . . . . . . Highest-Rated Group . | . . . . . . . Highest-Rated Ally . | . . . . . . . Total Orders . | . . . . . . . Ally Attacks . | . . . . . . . Total Damage . | . . . . . . . Kills . | . . . . . . . Allies Corrupted . | . . . . . . . Allies Melted . | . . . . . . . Intel | -11 -10 -10 -9 -9 -8 -7 ------- Run | Scr Mat Min Mat Min Mat Fac Robot Analysis Total 3 | . 1 1 1 . . . Derelict Logs Recovered 4 | . . 2 . 2 . . Drone Launches . | . . . . . . . Drone Recoveries . | . . . . . . . Exploration | -11 -10 -10 -9 -9 -8 -7 ------------- Run | Scr Mat Min Mat Min Mat Fac Turns Passed 9867 | 32 298 975 3998 1160 2139 1265 Spaces Moved 5339 | 13 207 806 1999 667 1000 647 Core . | . . . . . . . Treads 1033 | . . 36 33 19 614 331 Legs 5 | 5 . . . . . . Wheels 4301 | 8 207 770 1966 648 386 316 Hover . | . . . . . . . Flight . | . . . . . . . Fastest Speed 90 | 100 100 90 100 120 120 130 Average Speed 147 | 107 100 102 158 160 158 154 Slowest Speed 240 | 120 100 160 240 240 240 170 Overloaded Moves . | . . . . . . . Propulsion Burnouts . | . . . . . . . Robots Hopped . | . . . . . . . Cave-ins Triggered . | . . . . . . . Exploration Rate (%) 61 | 2 36 97 96 96 82 20 Regions Visited 6 Branch Regions 2 Pre-discovered Areas 2 | . . 1 . 1 . . Known Exits Taken 2 | . . . 1 . 1 . Unknown Exits Taken 4 | 1 1 1 . 1 . . Scrap Searched 1 | . . . . 1 . . Spaces Dug 27 | . . . 2 . 18 7 Terrain Destroyed 409 | . . 40 124 34 179 32 Melee 11 | . . . 2 . 2 7 Projectile 4 | . . 4 . . . . AOE 394 | . . 36 122 34 177 25 Terrain Rammed . | . . . . . . . Walls Destroyed . | . . . . . . . Machines Disabled . | . . . . . . . Actions | -11 -10 -10 -9 -9 -8 -7 --------- Run | Scr Mat Min Mat Min Mat Fac Total 6562 | 23 254 892 2528 712 1338 815 Wait 452 | . 8 18 269 . 82 75 Move 5333 | 12 206 805 1998 666 999 647 Hop . | . . . . . . . Pick Up 85 | 1 8 7 25 5 33 6 Fast Attach 25 | 1 . 4 5 . 11 4 Attach 30 | 2 . 5 5 3 11 4 Detach 2 | . . . . . . 2 Swap 99 | . 4 4 37 11 27 16 Drop 79 | 3 6 5 14 5 38 8 Fire 414 | 4 22 40 166 22 120 40 Melee 22 | . . . 3 . 8 11 Ram 7 | . . 2 2 . 3 . Kick . | . . . . . . . Crush 12 | . . 2 4 . 6 . Escape Stasis . | . . . . . . . Rewire 2 | . . . . . . 2 Trap . | . . . . . . . Miscellaneous . | . . . . . . . Route ------- -11/Scrapyard -10/Materials (discovered 2 exits: *Mat / *Min) -10/Mines (discovered 3 exits: *Mat x2 / [*Exi]) -9/Materials (discovered 5 exits: *Mat x3 / *Min / *Sto) -9/Mines (discovered 2 exits: *Mat x2) -8/Materials (discovered 3 exits: *Fac x3) -7/Factory (discovered 3 exits: [*Fac] / Low x2) History --------- Turn | Location | Event 13 | -11/Scrapyard | Discovered new exit (range 3) 33 | -11/Scrapyard | Entered Materials 145 | -10/Materials | Discovered new exit (range 10) 153 | -10/Materials | Central database locked down 308 | -10/Materials | Build established: Mutant 310 | -10/Materials | Discovered new exit (range 12) 331 | -10/Materials | Entered Mines 335 | -10/Mines | Discovered new exit (range 5) 343 | -10/Mines | Found the Drone Emporium 351 | -10/Mines | Found Prototype Device 351 | -10/Mines | Identified Thief Drone Bay 378 | -10/Mines | Assembled infested the area 402 | -10/Mines | Learned Materials stockpile data 460 | -10/Mines | Core integrity fell below 50% 488 | -10/Mines | Lost 4 parts (1p3w) 512 | -10/Mines | Deemed a non-threat by the Exiles lab entrance 513 | -10/Mines | Discovered new exit (range 5) 879 | -10/Mines | Central database locked down 908 | -10/Mines | Learned location of Zion (-7) 972 | -10/Mines | Discovered new exit (range 9) 1306 | -10/Mines | Entered Materials 1306 | -9/Materials | Evolved 2 slots: Utility x2 1517 | -9/Materials | Discovered new exit (range 4) 1725 | -9/Materials | Discovered new exit (range 4) 1770 | -9/Materials | Build established: Hauler-Mutant 2065 | -9/Materials | Discovered new exit (range 12) 3327 | -9/Materials | Discovered new exit (range 14) 4007 | -9/Materials | Core integrity fell below 50% 4102 | -9/Materials | Repaired Broken Cmb. Airjet 4153 | -9/Materials | Discovered new exit (range 8) 5261 | -9/Materials | Identified exit to Mines 5261 | -9/Materials | Identified exit to Storage 5304 | -9/Materials | Entered Mines 5551 | -9/Mines | Learned location of Storage (-9) 5642 | -9/Mines | Discovered new exit (range 5) 5801 | -9/Mines | Discovered new exit (range 7) 5942 | -9/Mines | Learned location of 1 exit from Materials 6230 | -9/Mines | Met a Derelict who couldn't figure out how to use a Trap Extractor 6464 | -9/Mines | Entered Materials 6464 | -8/Materials | Evolved 2 slots: Propulsion x1, Utility x1 6465 | -8/Materials | Identified exit to Factory 6599 | -8/Materials | Garrison activated, responded to threat 8095 | -8/Materials | Discovered exit to Factory (range 10) 8464 | -8/Materials | First assault squad dispatched 8603 | -8/Materials | Entered Factory 8603 | -7/Factory | Evolved 2 slots: Utility x2 9762 | -7/Factory | Identified exit to Lower Caves 9803 | -7/Factory | First assault squad dispatched 9848 | -7/Factory | Discovered new exit (range 5) 9868 | -7/Factory | Self-destructed Last Messages --------------- 09704_ Acquired Prototype Power Core. 09704_ Identified Enh. Nuclear Core. 09705_ Dropped Deuterium Engine. 09706_ Dropped Imp. Deuterium Engine. 09708_ Acquired Enh. Nuclear Core. 09746_ 8%M7 T5L9AVCQEUIAD1O PFGG 09762_ Connecting with Terminal... >>Access(Branch) Found 2 branch access points: (136,95) Lower Caves (20,111) Lower Caves Map updated. 09765_ System corrupted: Heat flow error (+186). 09803_ ALERT: Significant disruption in Zone 2G, assault force dispatched. 09841_ Acquired Missile Launcher. 09844_ Dropped Missile Launcher. 09844_ Acquired Missile Launcher. 09848_ EXIT=FOUND 09851_ System corrupted: Heat flow error (+271). Map ----- +----------------------------------------------------+ | # #???# #??????# #????????????????????? | | # #???# #??????# !=! #????????????????????? | | ##+##+######## #??????# [%[ #????????????????????? | | ?# ##########+##########?????????????? | | ?####/######## ## #?????????????? | | ??# ## ## """ """ #??############ | | ??# ## ## """"" """"" #??# | | ??# !! ## #? """"" """"" #??# | | ??# !! ## ## #??# | | ??#""" [! # + #### =!| | | ??#"T # # ! + + =! | | ??#""" + # ] ## # =| """ | | ??# # ##################### # """ | | ??########### #????? ???? #????# # """ | | ???#! ???# #???? ??? #????# # | | ???# ??# #?# ?""" """ #????# # | | ???#** ??# #?# """ """ #????# # | | ???#** ?# #?# """ """ #????#[# | | ???#* ?# #?# #????#%#######+#### | | ???# """ # #?# """ """ * #????#= | | ???# """ # #?# """ """ #????# ^ | | ???# """ + #?# """ """ #????+ | | ???# # #?# #????# | | ???########## ###! #????# | | ???# # ## #????# ###+#### | | ???#""" # ###+####@########### #?# ??? | | ???#""" + #?# "??? | | ???#""" # ### #?#"""?? | | ???# # #?# #?#"T ?? | | ???########### ###?# #?#""" ? | | ?????????#####+#####+## u #?# "" ? | | ?????????# # ####/##########?# | | ?????????# # #? ? ?????????# ? | | ?????????# # #? ??? ????????# ? | | ?????????# # #?????? ??????? ?? | | ?????????# """" ] # #??????? ?????? ??? | | ?????????# """" ] + +???????? ???? ??? | | ?????????# """" ]] # < #????????? ????????? | | ?????????# """" ]] # #?????????? ?????????? | | ?????????# """" # #????????????????????? | | ?????????# """" #######????????????????????? | | ?????????# """" #??????????????????????????? | | ?????????? #??????????????????????????? | | ?????????##############??????????????????????????? | | ?????????????????????????????????????????????????? | | ?????????????????????????????????????????????????? | | ?????????????????????????????????????????????????? | | ?????????????????????????????????????????????????? | | ?????????????????????????????????????????????????? | | ?????????????????????????????????????????????????? | +----------------------------------------------------+ Best States ------------- Heat Dissipation 34 Energy Generation 17 Energy Capacity 300 Matter Stores 300 Matter Capacity 300 Sight Range 20 Terrain Scan Density 10 Armor Coverage 375 Resistance: KI 30 Evasion (%) 42 Recoil Reduction 3 Offensive Hacking 30 Item Schematics ----------------- Cmb. Airjet | -9/Materials | Scanalyzed Hacking Suite | -8/Materials | Hacked Adv. Sensor Array | -8/Materials | Hacked Robot Schematics ------------------ None Fabricated ------------ Nothing Alien Tech Used ----------------- None Achievements -------------- None Challenges ------------ None Game ------ Seed CoolingSingularityFirepult Manual? 0 Play Time 00:53:46 Cumulative 167.6 hours Start 2020.11.20 @ 20:16:18 End 2020.11.20 @ 21:11:00 Sessions 1 Manual Loads 0 Difficulty Rogue Special Mode Halloween2020/ForbiddenLore Game No. 89 Rogue 89 Adventurer 0 Explorer 0 Win Type - Total 1 Types 1/0/0/0/0/0/0/0/0 Lore% 55 Gallery% 62 Achievement% 50 Wizard Run 0 Options --------- ASCII 1 Keyboard 1 Movement Vi Keybinds 0 Fullscreen 1 Font 16/Terminus Map View 75x55 Tactical HUD 1 Map Filters NONE Filters NONE Steam 1 RUN: b5b1b52f-fd1b-4894-ae6a-b8ba57a7733e